[Event "Titled Tuesday Blitz December 27 Early 2022"]
[White "Legenia, Artem"]
[Black "Sharifov, Mekhriddin"]
[WhiteFideId "14136945"]
[BlackFideId "14701545"]
[WhiteElo "2092"]
[BlackElo "2209"]
[Result "0-1"]
[Round "08"]
[TimeControl "180+2"]
[Date "2022.12.27"]
[WhiteClock "0:01:12"]
[BlackClock "0:01:09"]

1. d4 {[%clk 0:02:59]}  Nf6 {[%clk 0:03:00]} 2. Nf3 {[%clk 0:02:57]}  b5 {[%clk 0:03:00]} 3. g3 {[%clk 0:02:55]}  Bb7 {[%clk 0:02:59]} 4. Bg2 {[%clk 0:02:56]}  e6 {[%clk 0:02:56]} 5. O-O {[%clk 0:02:55]}  c5 {[%clk 0:02:57]} 6. dxc5 {[%clk 0:02:54]}  Bxc5 {[%clk 0:02:57]} 7. a4 {[%clk 0:02:54]}  b4 {[%clk 0:02:47]} 8. b3 {[%clk 0:02:54]}  O-O {[%clk 0:02:45]} 9. Bb2 {[%clk 0:02:54]}  Nc6 {[%clk 0:02:44]} 10. Nbd2 {[%clk 0:02:52]}  d5 {[%clk 0:02:44]} 11. e3 {[%clk 0:02:52]}  Rc8 {[%clk 0:02:40]} 12. Ne5 {[%clk 0:02:46]}  Qe7 {[%clk 0:02:25]} 13. Nxc6 {[%clk 0:02:45]}  Rxc6 {[%clk 0:02:26]} 14. Nf3 {[%clk 0:02:44]}  Rfc8 {[%clk 0:02:23]} 15. c3 {[%clk 0:02:39]}  Ne4 {[%clk 0:02:06]} 16. cxb4 {[%clk 0:02:38]}  Bxb4 {[%clk 0:02:07]} 17. Ne5 {[%clk 0:02:36]}  Rc2 {[%clk 0:01:59]} 18. Bxe4 {[%clk 0:02:32]}  Rxb2 {[%clk 0:01:41]} 19. Bg2 {[%clk 0:02:22]}  Ba6 {[%clk 0:01:40]} 20. Rc1 {[%clk 0:02:16]}  Qe8 {[%clk 0:01:24]} 21. Qg4 {[%clk 0:01:59]}  Bxf1 {[%clk 0:01:21]} 22. Rxc8 {[%clk 0:01:51]}  Qxc8 {[%clk 0:01:22]} 23. Bxf1 {[%clk 0:01:44]}  Bd6 {[%clk 0:01:19]} 24. Qd4 {[%clk 0:01:20]}  Bxe5 {[%clk 0:01:15]} 25. Qxe5 {[%clk 0:01:21]}  Rxb3 {[%clk 0:01:14]} 26. Kg2 {[%clk 0:01:11]}  g6 {[%clk 0:01:10]} 27. e4 {[%clk 0:01:12]}  dxe4 {[%clk 0:01:08]} 28. Qxe4 {[%clk 0:01:12]}  Qb7 {[%clk 0:01:08]} 29. Qxb7 {[%clk 0:01:12]}  Rxb7 {[%clk 0:01:09]} 0-1


[Site "https://www.chess.com"]

[Event "Titled Tuesday Blitz December 27 Early 2022"]
[White "Lehtosaari, Mauri"]
[Black "Quinones Garcia, Santiago"]
[WhiteFideId "501999"]
[BlackFideId "4408497"]
[WhiteElo "2176"]
[BlackElo "2248"]
[Result "0-1"]
[Round "08"]
[TimeControl "180+2"]
[Date "2022.12.27"]
[WhiteClock "0:00:08"]
[BlackClock "0:00:14"]

1. Nf3 {[%clk 0:03:00]}  d5 {[%clk 0:02:57]} 2. c4 {[%clk 0:03:00]}  c6 {[%clk 0:02:57]} 3. e3 {[%clk 0:02:59]}  Nf6 {[%clk 0:02:57]} 4. Nc3 {[%clk 0:02:58]}  Bg4 {[%clk 0:02:54]} 5. cxd5 {[%clk 0:02:56]}  cxd5 {[%clk 0:02:53]} 6. Qb3 {[%clk 0:02:56]}  Bc8 {[%clk 0:02:43]} 7. d4 {[%clk 0:02:33]}  e6 {[%clk 0:02:41]} 8. Ne5 {[%clk 0:02:29]}  a6 {[%clk 0:02:37]} 9. Bd2 {[%clk 0:02:24]}  Bd6 {[%clk 0:02:35]} 10. Bd3 {[%clk 0:02:22]}  O-O {[%clk 0:02:35]} 11. O-O {[%clk 0:02:22]}  Nc6 {[%clk 0:02:34]} 12. f4 {[%clk 0:02:21]}  Qe7 {[%clk 0:02:16]} 13. Be1 {[%clk 0:02:18]}  Nd7 {[%clk 0:02:02]} 14. Qc2 {[%clk 0:02:05]}  g6 {[%clk 0:02:00]} 15. a3 {[%clk 0:01:59]}  f6 {[%clk 0:01:58]} 16. Nxc6 {[%clk 0:01:45]}  bxc6 {[%clk 0:01:59]} 17. Bh4 {[%clk 0:01:39]}  c5 {[%clk 0:01:56]} 18. Rae1 {[%clk 0:01:32]}  c4 {[%clk 0:01:51]} 19. Be2 {[%clk 0:01:28]}  Bb7 {[%clk 0:01:35]} 20. Bg4 {[%clk 0:01:19]}  Qf7 {[%clk 0:01:31]} 21. Bh3 {[%clk 0:01:00]}  f5 {[%clk 0:01:30]} 22. g3 {[%clk 0:00:51]}  Bc6 {[%clk 0:01:30]} 23. Bg2 {[%clk 0:00:50]}  Rab8 {[%clk 0:01:30]} 24. Bf3 {[%clk 0:00:50]}  Rb7 {[%clk 0:01:28]} 25. Re2 {[%clk 0:00:47]}  Rfb8 {[%clk 0:01:26]} 26. Qc1 {[%clk 0:00:44]}  Rb3 {[%clk 0:01:25]} 27. Rg2 {[%clk 0:00:43]}  Be7 {[%clk 0:01:05]} 28. Bxe7 {[%clk 0:00:40]}  Qxe7 {[%clk 0:01:06]} 29. g4 {[%clk 0:00:40]}  Nf6 {[%clk 0:01:05]} 30. gxf5 {[%clk 0:00:38]}  exf5 {[%clk 0:01:04]} 31. h4 {[%clk 0:00:39]}  Kh8 {[%clk 0:00:54]} 32. Bd1 {[%clk 0:00:30]}  R3b7 {[%clk 0:00:48]} 33. Bf3 {[%clk 0:00:29]}  Rb3 {[%clk 0:00:41]} 34. Bd1 {[%clk 0:00:25]}  R3b6 {[%clk 0:00:41]} 35. Bf3 {[%clk 0:00:26]}  Qb7 {[%clk 0:00:39]} 36. Rff2 {[%clk 0:00:24]}  Qe7 {[%clk 0:00:35]} 37. Rh2 {[%clk 0:00:24]}  Re8 {[%clk 0:00:32]} 38. Re2 {[%clk 0:00:24]}  h5 {[%clk 0:00:28]} 39. Nd1 {[%clk 0:00:21]}  Rb3 {[%clk 0:00:23]} 40. Nc3 {[%clk 0:00:19]}  Qf7 {[%clk 0:00:19]} 41. Reg2 {[%clk 0:00:15]}  Ng4 {[%clk 0:00:18]} 42. Bxg4 {[%clk 0:00:15]}  fxg4 {[%clk 0:00:18]} 43. Rg3 {[%clk 0:00:15]}  Re7 {[%clk 0:00:16]} 44. Rf2 {[%clk 0:00:16]}  Bd7 {[%clk 0:00:15]} 45. Nd1 {[%clk 0:00:15]}  Bf5 {[%clk 0:00:15]} 46. Nc3 {[%clk 0:00:15]}  Reb7 {[%clk 0:00:12]} 47. Rgg2 {[%clk 0:00:13]}  R7b6 {[%clk 0:00:12]} 48. Qe1 {[%clk 0:00:13]}  Qb7 {[%clk 0:00:12]} 49. Rd2 {[%clk 0:00:12]}  Rxb2 {[%clk 0:00:12]} 50. Rxb2 {[%clk 0:00:12]}  Rxb2 {[%clk 0:00:12]} 51. Rxb2 {[%clk 0:00:11]}  Qxb2 {[%clk 0:00:13]} 52. Nxd5 {[%clk 0:00:12]}  Be4 {[%clk 0:00:13]} 53. Qf2 {[%clk 0:00:05]}  Qxf2+ {[%clk 0:00:13]} 54. Kxf2 {[%clk 0:00:06]}  Bxd5 {[%clk 0:00:13]} 55. Ke2 {[%clk 0:00:06]}  Kg7 {[%clk 0:00:13]} 56. Kd2 {[%clk 0:00:07]}  g3 {[%clk 0:00:14]} 57. Kc3 {[%clk 0:00:08]}  g2 {[%clk 0:00:14]} 0-1


[Site "https://www.chess.com"]

[Event "Titled Tuesday Blitz December 27 Early 2022"]
[White "Mahdavi, Reza"]
[Black "Gabdrakhmanov, Azat"]
[WhiteFideId "12595926"]
[BlackFideId "34189197"]
[WhiteElo "2339"]
[BlackElo "2316"]
[Result "1-0"]
[Round "08"]
[TimeControl "180+2"]
[Date "2022.12.27"]
[WhiteClock "0:01:01"]
[BlackClock "0:00:06"]

1. e4 {[%clk 0:03:00]}  c5 {[%clk 0:02:59]} 2. Nf3 {[%clk 0:03:01]}  e6 {[%clk 0:03:00]} 3. c3 {[%clk 0:03:00]}  d5 {[%clk 0:02:59]} 4. exd5 {[%clk 0:03:01]}  Qxd5 {[%clk 0:03:00]} 5. d4 {[%clk 0:03:02]}  Nf6 {[%clk 0:03:00]} 6. Na3 {[%clk 0:03:02]}  a6 {[%clk 0:03:00]} 7. Nc4 {[%clk 0:02:59]}  Nbd7 {[%clk 0:03:00]} 8. Ne3 {[%clk 0:02:59]}  Qd6 {[%clk 0:02:53]} 9. Bd3 {[%clk 0:02:58]}  Be7 {[%clk 0:02:52]} 10. O-O {[%clk 0:02:59]}  O-O {[%clk 0:02:50]} 11. Qe2 {[%clk 0:02:59]}  cxd4 {[%clk 0:02:50]} 12. Nxd4 {[%clk 0:02:59]}  Qc7 {[%clk 0:02:36]} 13. a4 {[%clk 0:02:53]}  b6 {[%clk 0:02:35]} 14. Bd2 {[%clk 0:02:35]}  Bb7 {[%clk 0:02:34]} 15. Rad1 {[%clk 0:02:36]}  Rfe8 {[%clk 0:02:22]} 16. Rfe1 {[%clk 0:02:34]}  Bd6 {[%clk 0:02:19]} 17. Nf1 {[%clk 0:02:29]}  g6 {[%clk 0:02:15]} 18. b4 {[%clk 0:02:28]}  e5 {[%clk 0:02:14]} 19. Nb3 {[%clk 0:02:24]}  e4 {[%clk 0:02:12]} 20. Bb1 {[%clk 0:02:22]}  Ne5 {[%clk 0:02:05]} 21. Ng3 {[%clk 0:02:16]}  h5 {[%clk 0:01:12]} 22. Bg5 {[%clk 0:02:12]}  Nh7 {[%clk 0:01:09]} 23. Be3 {[%clk 0:02:06]}  Ng4 {[%clk 0:01:05]} 24. a5 {[%clk 0:01:53]}  Nxh2 {[%clk 0:00:25]} 25. axb6 {[%clk 0:01:40]}  Qb8 {[%clk 0:00:25]} 26. Kxh2 {[%clk 0:01:40]}  h4 {[%clk 0:00:25]} 27. Rf1 {[%clk 0:01:26]}  hxg3+ {[%clk 0:00:24]} 28. fxg3 {[%clk 0:01:27]}  Bxg3+ {[%clk 0:00:24]} 29. Kg1 {[%clk 0:01:27]}  Re5 {[%clk 0:00:20]} 30. Bf4 {[%clk 0:01:15]}  Bxf4 {[%clk 0:00:20]} 31. Rxf4 {[%clk 0:01:15]}  Rh5 {[%clk 0:00:19]} 32. Rdf1 {[%clk 0:01:16]}  Ng5 {[%clk 0:00:19]} 33. Nd4 {[%clk 0:01:13]}  Qe5 {[%clk 0:00:18]} 34. Ba2 {[%clk 0:01:13]}  Rf8 {[%clk 0:00:17]} 35. Qg4 {[%clk 0:01:12]}  Kg7 {[%clk 0:00:16]} 36. Nf5+ {[%clk 0:01:10]}  Kh7 {[%clk 0:00:12]} 37. Ng3 {[%clk 0:01:08]}  Rh6 {[%clk 0:00:10]} 38. Bxf7 {[%clk 0:01:07]}  Kg7 {[%clk 0:00:06]} 39. Bc4 {[%clk 0:01:03]}  Rxf4 {[%clk 0:00:07]} 40. Qxf4 {[%clk 0:01:04]}  Qxf4 {[%clk 0:00:07]} 41. Rxf4 {[%clk 0:01:04]}  e3 {[%clk 0:00:08]} 42. Nf1 {[%clk 0:01:01]}  Nh3+ {[%clk 0:00:05]} 43. gxh3 {[%clk 0:01:00]}  Rxh3 {[%clk 0:00:06]} 44. Rf7+ {[%clk 0:01:00]}  Kh6 {[%clk 0:00:07]} 45. Rxb7 {[%clk 0:01:01]}  Rh4 {[%clk 0:00:06]} 46. Nxe3 {[%clk 0:01:01]} 1-0


[Site "https://www.chess.com"]

[Event "Titled Tuesday Blitz December 27 Early 2022"]
[White "Makhmudov, Shukhrat"]
[Black "Kabanov, Nikolai"]
[WhiteFideId "14200775"]
[BlackFideId "4127820"]
[WhiteElo "2115"]
[BlackElo "2429"]
[Result "0-1"]
[Round "08"]
[TimeControl "180+2"]
[Date "2022.12.27"]
[WhiteClock "0:00:29"]
[BlackClock "0:00:58"]

1. e4 {[%clk 0:02:57]}  c6 {[%clk 0:03:00]} 2. d4 {[%clk 0:02:56]}  d5 {[%clk 0:03:00]} 3. Nc3 {[%clk 0:02:56]}  dxe4 {[%clk 0:03:00]} 4. Nxe4 {[%clk 0:02:57]}  Nf6 {[%clk 0:03:01]} 5. Nxf6+ {[%clk 0:02:57]}  exf6 {[%clk 0:03:01]} 6. c3 {[%clk 0:02:57]}  Bd6 {[%clk 0:03:01]} 7. Bd3 {[%clk 0:02:58]}  Na6 {[%clk 0:03:01]} 8. Ne2 {[%clk 0:02:51]}  Nc7 {[%clk 0:03:00]} 9. Bf4 {[%clk 0:02:50]}  Nd5 {[%clk 0:02:57]} 10. Bxd6 {[%clk 0:02:50]}  Qxd6 {[%clk 0:02:58]} 11. Ng3 {[%clk 0:02:49]}  O-O {[%clk 0:02:56]} 12. O-O {[%clk 0:02:49]}  g6 {[%clk 0:02:42]} 13. Qf3 {[%clk 0:02:48]}  f5 {[%clk 0:02:39]} 14. Rfe1 {[%clk 0:02:47]}  Be6 {[%clk 0:02:36]} 15. a3 {[%clk 0:02:46]}  b5 {[%clk 0:02:35]} 16. Re5 {[%clk 0:02:45]}  a5 {[%clk 0:02:33]} 17. Rae1 {[%clk 0:02:35]}  b4 {[%clk 0:02:31]} 18. c4 {[%clk 0:02:33]}  Nf6 {[%clk 0:02:25]} 19. axb4 {[%clk 0:01:57]}  axb4 {[%clk 0:02:25]} 20. Qf4 {[%clk 0:01:54]}  Rfd8 {[%clk 0:02:16]} 21. Qg5 {[%clk 0:01:41]}  Ng4 {[%clk 0:02:13]} 22. Nh5 {[%clk 0:01:18]}  Qxd4 {[%clk 0:02:06]} 23. Nf6+ {[%clk 0:00:58]}  Nxf6 {[%clk 0:01:55]} 24. Qxf6 {[%clk 0:00:58]}  Qxb2 {[%clk 0:01:05]} 25. Bxf5 {[%clk 0:00:30]}  Bxf5 {[%clk 0:00:59]} 26. Re8+ {[%clk 0:00:29]}  Rxe8 {[%clk 0:00:58]} 0-1


[Site "https://www.chess.com"]

[Event "Titled Tuesday Blitz December 27 Early 2022"]
[White "Marjanovic, Annamaria"]
[Black "Demidov, Mikhail"]
[WhiteFideId "750930"]
[BlackFideId "4197143"]
[WhiteElo "2273"]
[BlackElo "2583"]
[Result "1-0"]
[Round "08"]
[TimeControl "180+2"]
[Date "2022.12.27"]
[WhiteClock "0:00:09"]
[BlackClock "0:00:07"]

1. c4 {[%clk 0:03:00]}  e5 {[%clk 0:02:32]} 2. g3 {[%clk 0:03:01]}  Nc6 {[%clk 0:02:32]} 3. Bg2 {[%clk 0:03:01]}  Bc5 {[%clk 0:02:33]} 4. Nc3 {[%clk 0:03:01]}  a6 {[%clk 0:02:33]} 5. e3 {[%clk 0:03:01]}  Ba7 {[%clk 0:02:33]} 6. Nge2 {[%clk 0:03:00]}  d6 {[%clk 0:02:33]} 7. a3 {[%clk 0:02:59]}  Nge7 {[%clk 0:02:33]} 8. O-O {[%clk 0:02:58]}  h5 {[%clk 0:02:33]} 9. h4 {[%clk 0:02:57]}  Bg4 {[%clk 0:02:33]} 10. b4 {[%clk 0:02:54]}  Qd7 {[%clk 0:02:23]} 11. b5 {[%clk 0:02:51]}  axb5 {[%clk 0:02:23]} 12. cxb5 {[%clk 0:02:51]}  Nd8 {[%clk 0:02:23]} 13. d4 {[%clk 0:02:45]}  exd4 {[%clk 0:02:17]} 14. exd4 {[%clk 0:02:45]}  O-O {[%clk 0:02:17]} 15. Be3 {[%clk 0:02:43]}  Nf5 {[%clk 0:02:14]} 16. Qd3 {[%clk 0:02:31]}  Re8 {[%clk 0:02:13]} 17. Nf4 {[%clk 0:02:25]}  c6 {[%clk 0:02:03]} 18. a4 {[%clk 0:02:19]}  d5 {[%clk 0:02:01]} 19. a5 {[%clk 0:02:04]}  Bb8 {[%clk 0:01:51]} 20. Bd2 {[%clk 0:01:58]}  Nd6 {[%clk 0:01:42]} 21. bxc6 {[%clk 0:01:52]}  bxc6 {[%clk 0:01:41]} 22. Na4 {[%clk 0:01:51]}  Nc4 {[%clk 0:01:37]} 23. Nc5 {[%clk 0:01:45]}  Qc8 {[%clk 0:01:21]} 24. Rfe1 {[%clk 0:01:26]}  Rf8 {[%clk 0:00:58]} 25. Nxd5 {[%clk 0:01:02]}  cxd5 {[%clk 0:00:56]} 26. Bxd5 {[%clk 0:01:03]}  Nxd2 {[%clk 0:00:40]} 27. Bxa8 {[%clk 0:01:00]}  Bxg3 {[%clk 0:00:35]} 28. fxg3 {[%clk 0:00:54]}  Qxa8 {[%clk 0:00:34]} 29. Qxd2 {[%clk 0:00:54]}  Nc6 {[%clk 0:00:35]} 30. Qg2 {[%clk 0:00:45]}  Rc8 {[%clk 0:00:34]} 31. a6 {[%clk 0:00:26]}  Qa7 {[%clk 0:00:34]} 32. Qf2 {[%clk 0:00:20]}  Rd8 {[%clk 0:00:31]} 33. Nb7 {[%clk 0:00:18]}  Rxd4 {[%clk 0:00:26]} 34. Re8+ {[%clk 0:00:18]}  Kh7 {[%clk 0:00:26]} 35. Rae1 {[%clk 0:00:14]}  Qxa6 {[%clk 0:00:23]} 36. Qxf7 {[%clk 0:00:13]}  Qd3 {[%clk 0:00:15]} 37. Qg8+ {[%clk 0:00:12]}  Kh6 {[%clk 0:00:16]} 38. Qh8+ {[%clk 0:00:11]}  Kg6 {[%clk 0:00:14]} 39. R8e6+ {[%clk 0:00:11]}  Bxe6 {[%clk 0:00:13]} 40. Rxe6+ {[%clk 0:00:12]}  Kf5 {[%clk 0:00:14]} 41. Qxh5+ {[%clk 0:00:10]}  Kxe6 {[%clk 0:00:14]} 42. Nc5+ {[%clk 0:00:11]}  Kf6 {[%clk 0:00:09]} 43. Nxd3 {[%clk 0:00:10]}  Rxd3 {[%clk 0:00:10]} 44. Qg5+ {[%clk 0:00:09]}  Ke6 {[%clk 0:00:07]} 45. Qg6+ {[%clk 0:00:09]} 1-0


[Site "https://www.chess.com"]

[Event "Titled Tuesday Blitz December 27 Early 2022"]
[White "Martinez Alcantara, Jose Eduardo"]
[Black "Firouzja, Alireza"]
[WhiteFideId "3805662"]
[BlackFideId "12573981"]
[WhiteElo "2619"]
[BlackElo "2785"]
[Result "1/2-1/2"]
[Round "08"]
[TimeControl "180+2"]
[Date "2022.12.27"]
[WhiteClock "0:00:03"]
[BlackClock "0:00:05"]

1. e4 {[%clk 0:03:00]}  c6 {[%clk 0:03:00]} 2. d4 {[%clk 0:03:00]}  d5 {[%clk 0:03:00]} 3. e5 {[%clk 0:03:01]}  Bf5 {[%clk 0:03:00]} 4. h4 {[%clk 0:03:01]}  h5 {[%clk 0:03:00]} 5. Bd3 {[%clk 0:03:01]}  Bxd3 {[%clk 0:03:00]} 6. Qxd3 {[%clk 0:03:02]}  e6 {[%clk 0:03:00]} 7. Nf3 {[%clk 0:03:00]}  Ne7 {[%clk 0:03:00]} 8. Bg5 {[%clk 0:03:00]}  Qa5+ {[%clk 0:02:59]} 9. Nbd2 {[%clk 0:03:00]}  Nf5 {[%clk 0:02:59]} 10. O-O {[%clk 0:02:58]}  Nd7 {[%clk 0:02:58]} 11. c4 {[%clk 0:02:58]}  Be7 {[%clk 0:02:52]} 12. Bxe7 {[%clk 0:02:56]}  Nxe7 {[%clk 0:02:51]} 13. Rfd1 {[%clk 0:02:51]}  Nf5 {[%clk 0:02:48]} 14. b3 {[%clk 0:02:51]}  Nf8 {[%clk 0:02:35]} 15. Nf1 {[%clk 0:02:50]}  Ng6 {[%clk 0:02:33]} 16. g3 {[%clk 0:02:50]}  Rd8 {[%clk 0:02:33]} 17. Qe2 {[%clk 0:02:43]}  Nge7 {[%clk 0:02:32]} 18. Rd2 {[%clk 0:02:31]}  O-O {[%clk 0:02:13]} 19. Rad1 {[%clk 0:02:16]}  dxc4 {[%clk 0:01:52]} 20. bxc4 {[%clk 0:02:17]}  b5 {[%clk 0:01:52]} 21. Ng5 {[%clk 0:02:13]}  g6 {[%clk 0:01:44]} 22. Ne4 {[%clk 0:02:07]}  bxc4 {[%clk 0:01:40]} 23. Qxc4 {[%clk 0:02:08]}  Kg7 {[%clk 0:01:39]} 24. Nh2 {[%clk 0:02:01]}  Qd5 {[%clk 0:01:35]} 25. Qe2 {[%clk 0:01:59]}  Qb5 {[%clk 0:01:34]} 26. Nf3 {[%clk 0:01:50]}  Qxe2 {[%clk 0:01:34]} 27. Rxe2 {[%clk 0:01:51]}  Rb8 {[%clk 0:01:34]} 28. Rd3 {[%clk 0:01:39]}  Rfd8 {[%clk 0:01:33]} 29. Ra3 {[%clk 0:01:37]}  Rb7 {[%clk 0:01:06]} 30. Nc5 {[%clk 0:01:37]}  Rc7 {[%clk 0:01:06]} 31. Na6 {[%clk 0:01:38]}  Rcc8 {[%clk 0:00:53]} 32. Nc5 {[%clk 0:01:37]}  Ra8 {[%clk 0:00:52]} 33. Rb2 {[%clk 0:01:25]}  Nxd4 {[%clk 0:00:33]} 34. Nxd4 {[%clk 0:01:26]}  Rxd4 {[%clk 0:00:33]} 35. Rb7 {[%clk 0:01:27]}  Kf8 {[%clk 0:00:33]} 36. Nd7+ {[%clk 0:01:16]}  Kg7 {[%clk 0:00:32]} 37. Nc5 {[%clk 0:01:14]}  Kf8 {[%clk 0:00:32]} 38. Raxa7 {[%clk 0:00:51]}  Rxa7 {[%clk 0:00:32]} 39. Rxa7 {[%clk 0:00:52]}  Rd5 {[%clk 0:00:30]} 40. Nd7+ {[%clk 0:00:53]}  Kg7 {[%clk 0:00:30]} 41. a4 {[%clk 0:00:49]}  Nf5 {[%clk 0:00:18]} 42. a5 {[%clk 0:00:45]}  Nd4 {[%clk 0:00:16]} 43. Kg2 {[%clk 0:00:31]}  Nb3 {[%clk 0:00:16]} 44. a6 {[%clk 0:00:31]}  Nc5 {[%clk 0:00:16]} 45. Nb8 {[%clk 0:00:25]}  Rd2 {[%clk 0:00:06]} 46. Rc7 {[%clk 0:00:15]}  Ra2 {[%clk 0:00:06]} 47. a7 {[%clk 0:00:15]}  Ne4 {[%clk 0:00:02]} 48. Nxc6 {[%clk 0:00:14]}  Nxf2 {[%clk 0:00:02]} 49. Kf1 {[%clk 0:00:12]}  Ng4 {[%clk 0:00:01]} 50. Rc8 {[%clk 0:00:12]}  Nh2+ {[%clk 0:00:01]} 51. Ke1 {[%clk 0:00:12]}  Nf3+ {[%clk 0:00:02]} 52. Kd1 {[%clk 0:00:12]}  Nxe5 {[%clk 0:00:03]} 53. Nxe5 {[%clk 0:00:08]}  Rxa7 {[%clk 0:00:03]} 54. Ke2 {[%clk 0:00:08]}  Ra5 {[%clk 0:00:04]} 55. Nf3 {[%clk 0:00:05]}  Ra2+ {[%clk 0:00:04]} 56. Ke3 {[%clk 0:00:06]}  Ra3+ {[%clk 0:00:04]} 57. Kf2 {[%clk 0:00:06]}  Ra2+ {[%clk 0:00:04]} 58. Kf1 {[%clk 0:00:07]}  Ra1+ {[%clk 0:00:04]} 59. Kg2 {[%clk 0:00:07]}  Ra2+ {[%clk 0:00:04]} 60. Kh3 {[%clk 0:00:08]}  Ra7 {[%clk 0:00:04]} 61. Rc3 {[%clk 0:00:08]}  Rd7 {[%clk 0:00:04]} 62. Ng5 {[%clk 0:00:08]}  Ra7 {[%clk 0:00:04]} 63. Rd3 {[%clk 0:00:08]}  Rb7 {[%clk 0:00:04]} 64. Rc3 {[%clk 0:00:08]}  Rd7 {[%clk 0:00:04]} 65. Rb3 {[%clk 0:00:09]}  Ra7 {[%clk 0:00:04]} 66. Kg2 {[%clk 0:00:09]}  Rc7 {[%clk 0:00:04]} 67. Kf3 {[%clk 0:00:10]}  Rd7 {[%clk 0:00:04]} 68. Kf4 {[%clk 0:00:10]}  Rc7 {[%clk 0:00:04]} 69. Ke3 {[%clk 0:00:10]}  Rd7 {[%clk 0:00:04]} 70. Rc3 {[%clk 0:00:10]}  Ra7 {[%clk 0:00:04]} 71. Ke4 {[%clk 0:00:11]}  Ra4+ {[%clk 0:00:03]} 72. Kf3 {[%clk 0:00:11]}  Ra7 {[%clk 0:00:04]} 73. Ne4 {[%clk 0:00:12]}  Rd7 {[%clk 0:00:03]} 74. Rb3 {[%clk 0:00:13]}  Rc7 {[%clk 0:00:03]} 75. Nd6 {[%clk 0:00:13]}  Rd7 {[%clk 0:00:04]} 76. Rb6 {[%clk 0:00:13]}  Kf8 {[%clk 0:00:03]} 77. Ke4 {[%clk 0:00:13]}  Ra7 {[%clk 0:00:04]} 78. Rb8+ {[%clk 0:00:12]}  Kg7 {[%clk 0:00:03]} 79. Ne8+ {[%clk 0:00:12]}  Kf8 {[%clk 0:00:03]} 80. Nf6+ {[%clk 0:00:12]}  Kg7 {[%clk 0:00:02]} 81. Ne8+ {[%clk 0:00:12]}  Kf8 {[%clk 0:00:02]} 82. Kf4 {[%clk 0:00:07]}  Ke7 {[%clk 0:00:02]} 83. Ng7 {[%clk 0:00:05]}  Ra4+ {[%clk 0:00:02]} 84. Kf3 {[%clk 0:00:05]}  Kf6 {[%clk 0:00:03]} 85. Ne8+ {[%clk 0:00:06]}  Ke7 {[%clk 0:00:03]} 86. Nc7 {[%clk 0:00:06]}  Rc4 {[%clk 0:00:03]} 87. Nb5 {[%clk 0:00:05]}  Rc6 {[%clk 0:00:02]} 88. Nd4 {[%clk 0:00:05]}  Ra6 {[%clk 0:00:02]} 89. Ke4 {[%clk 0:00:05]}  Kf6 {[%clk 0:00:02]} 90. Rb2 {[%clk 0:00:05]}  Ra3 {[%clk 0:00:03]} 91. Rf2+ {[%clk 0:00:05]}  Kg7 {[%clk 0:00:03]} 92. Nf3 {[%clk 0:00:04]}  Ra4+ {[%clk 0:00:03]} 93. Ke3 {[%clk 0:00:04]}  Ra3+ {[%clk 0:00:03]} 94. Ke2 {[%clk 0:00:04]}  f6 {[%clk 0:00:02]} 95. Kf1 {[%clk 0:00:04]}  e5 {[%clk 0:00:02]} 96. Kg2 {[%clk 0:00:05]}  Kf7 {[%clk 0:00:03]} 97. Rb2 {[%clk 0:00:05]}  Ke6 {[%clk 0:00:03]} 98. Rb6+ {[%clk 0:00:06]}  Kf5 {[%clk 0:00:03]} 99. Rb5 {[%clk 0:00:05]}  Kg4 {[%clk 0:00:03]} 100. Nh2+ {[%clk 0:00:05]}  Kf5 {[%clk 0:00:04]} 101. Rb2 {[%clk 0:00:06]}  Rc3 {[%clk 0:00:04]} 102. Nf1 {[%clk 0:00:06]}  Kg4 {[%clk 0:00:03]} 103. Rb4+ {[%clk 0:00:06]}  Kf5 {[%clk 0:00:03]} 104. Kf2 {[%clk 0:00:06]}  Rc2+ {[%clk 0:00:03]} 105. Kf3 {[%clk 0:00:06]}  Rc6 {[%clk 0:00:02]} 106. Ne3+ {[%clk 0:00:07]}  Ke6 {[%clk 0:00:03]} 107. Ra4 {[%clk 0:00:08]}  Rd6 {[%clk 0:00:03]} 108. Ra8 {[%clk 0:00:08]}  f5 {[%clk 0:00:03]} 109. Nc4 {[%clk 0:00:07]}  Rd3+ {[%clk 0:00:03]} 110. Kf2 {[%clk 0:00:08]}  e4 {[%clk 0:00:03]} 111. Ra6+ {[%clk 0:00:07]}  Kd5 {[%clk 0:00:03]} 112. Ne3+ {[%clk 0:00:07]}  Ke5 {[%clk 0:00:02]} 113. Rxg6 {[%clk 0:00:04]}  Rd2+ {[%clk 0:00:03]} 114. Ke1 {[%clk 0:00:05]}  Rh2 {[%clk 0:00:04]} 115. Rg5 {[%clk 0:00:04]}  Kd4 {[%clk 0:00:05]} 116. Nxf5+ {[%clk 0:00:05]}  Kd3 {[%clk 0:00:05]} 117. Kf1 {[%clk 0:00:03]}  e3 {[%clk 0:00:06]} 118. Nxe3 {[%clk 0:00:03]}  Kxe3 {[%clk 0:00:06]} 119. Kg1 {[%clk 0:00:03]}  Ra2 {[%clk 0:00:06]} 120. Rxh5 {[%clk 0:00:03]}  Kf3 {[%clk 0:00:06]} 121. Rg5 {[%clk 0:00:03]}  Rg2+ {[%clk 0:00:04]} 122. Kh1 {[%clk 0:00:04]}  Ra2 {[%clk 0:00:04]} 123. h5 {[%clk 0:00:04]}  Rb2 {[%clk 0:00:02]} 124. Rg6 {[%clk 0:00:04]}  Rb1+ {[%clk 0:00:02]} 125. Kh2 {[%clk 0:00:04]}  Rb5 {[%clk 0:00:03]} 126. h6 {[%clk 0:00:04]}  Rh5+ {[%clk 0:00:02]} 127. Kg1 {[%clk 0:00:04]}  Rh3 {[%clk 0:00:03]} 128. Rg7 {[%clk 0:00:01]}  Rxh6 {[%clk 0:00:03]} 129. Rg8 {[%clk 0:00:02]}  Rh3 {[%clk 0:00:03]} 130. Rg7 {[%clk 0:00:02]}  Rxg3+ {[%clk 0:00:04]} 131. Rxg3+ {[%clk 0:00:03]}  Kxg3 {[%clk 0:00:05]} 1/2-1/2


[Site "https://www.chess.com"]